bitfinex/quotes_BTCUSD_20220405
["timestamp","ask_amount","ask_price","bid_price","bid_amount"]
[1649164884063,0.01,46474.0,46467.0,0.031078]
[1649164884164,0.01,46474.0,46468.0,0.0396]
[1649164884263,0.01,46474.0,46469.0,0.031076]
[1649164884462,0.01,46474.0,46470.0,0.0396]
[1649164884562,0.01,46474.0,46471.0,0.031073]
[1649164884762,0.01,46474.0,46472.0,0.0396]
[1649164884862,0.01,46474.0,46473.0,0.03107]
[1649164885064,0.01,46489.0,46474.0,0.01]
[1649164885171,0.01,46489.0,46479.0,0.2]
[1649164885285,0.11269,46489.0,46480.0,0.331052]
[1649164885365,0.11269,46489.0,46480.0,0.370652]
[1649164885565,0.11269,46489.0,46480.0,0.420652]
[1649164885765,0.10769,46489.0,46480.0,0.420652]
[1649164885965,0.10769,46489.0,46482.0,0.21924084]
[1649164886067,0.10769,46489.0,46471.0,0.070183]
[1649164886068,0.25203309,46484.0,46478.0,0.107504]
[1649164886193,0.25203309,46484.0,46466.0,0.2]
[1649164886271,0.25203309,46484.0,46479.0,0.0396]
[1649164886368,0.25203309,46484.0,46472.0,0.3]
[1649164886523,0.25203309,46484.0,46468.0,0.031069]
[1649164886718,0.3,46483.0,46469.0,0.0396]
[1649164886830,0.25203309,46484.0,46470.0,0.031069]
[1649164886918,0.25203309,46484.0,46474.0,0.17386439]
[1649164887071,0.3,46485.0,46475.0,0.031062]
[1649164887170,0.00054364,46478.0,46474.0,0.24648974]
[1649164887270,0.00054364,46478.0,46476.0,0.0396]
[1649164887369,0.00054364,46478.0,46477.0,0.031062]
[1649164887572,0.00054364,46478.0,46477.0,0.070662]
[1649164887670,0.00054364,46478.0,46469.0,0.0396]
[1649164887777,0.00054364,46478.0,46457.0,0.03018552]
[1649164887870,0.00054364,46478.0,46469.0,0.0396]
[1649164888121,0.3,46482.0,46470.0,0.031072]
[1649164888122,0.2840971,46472.0,46470.0,0.031072]
[1649164888372,0.00054366,46476.0,46470.0,0.031072]
[1649164888672,0.053782,46475.0,46470.0,0.031072]
[1649164888872,0.00054366,46476.0,46470.0,0.031072]
[1649164889176,0.00054366,46476.0,46469.0,0.0396]
[1649164889177,0.00054366,46476.0,46475.0,0.32352763]
[1649164889273,0.19461526,46483.0,46475.0,0.32352763]
[1649164889274,0.19244096,46483.0,46475.0,0.32352763]
[1649164889371,0.3,46486.0,46475.0,0.29246263]
[1649164889475,0.25471393,46482.0,46475.0,0.29246263]
[1649164889672,0.25688824,46482.0,46475.0,0.29246263]
[1649164889973,0.00142473,46477.0,46475.0,0.29246263]
[1649164890073,0.00142473,46477.0,46476.0,0.031061]
[1649164890961,0.00142473,46477.0,46476.0,0.070661]
[1649164891414,0.00142473,46477.0,46476.0,0.120661]
[1649164892212,0.00142473,46477.0,46476.0,0.070661]
[1649164892616,0.00142473,46477.0,46476.0,0.120661]
[1649164892718,0.00022724,46479.0,46476.0,0.120661]
[1649164892927,0.01,46489.0,46478.0,0.031056]
[1649164893014,0.01,46489.0,46480.0,0.053748]
[1649164893116,0.01,46489.0,46481.0,0.03105]
[1649164893215,0.00090884,46487.0,46481.0,0.03105]
[1649164893315,0.00090884,46487.0,46483.0,0.0999]
[1649164893466,0.00090884,46487.0,46484.0,0.190647]
[1649164893569,0.00090884,46487.0,46484.0,0.63489186]
[1649164894057,0.00090884,46487.0,46485.0,0.2236376]
[1649164894154,0.01,46489.0,46486.0,0.031044]
[1649164894252,0.01,46489.0,46486.0,0.10080954]
[1649164894500,0.00022724,46488.0,46486.0,0.10080954]
[1649164894799,0.00090882,46495.0,46487.0,1.1]
[1649164894899,0.00090882,46495.0,46488.0,0.031037]
[1649164895009,0.00090882,46495.0,46488.0,0.070637]
[1649164895100,0.00090882,46495.0,46491.0,0.3161292]
[1649164895205,0.00090882,46495.0,46492.0,0.031032]
[1649164895404,2.0,46500.0,46492.0,0.031032]
[1649164895505,0.19244096,46498.0,46492.0,0.031028]
[1649164896101,2.0,46500.0,46492.0,0.031028]
[1649164896204,0.19244096,46497.0,46491.0,0.3698742]
[1649164896301,0.19244096,46497.0,46492.0,0.031028]
[1649164896403,0.26099076,46495.0,46492.0,0.031028]
[1649164896505,0.19244096,46497.0,46492.0,0.031028]
[1649164897155,0.19244096,46497.0,46492.0,0.03936745]
[1649164897254,0.19244096,46497.0,46492.0,0.00833945]
[1649164897461,0.3,46496.0,46492.0,0.00833945]
[1649164897656,0.3,46496.0,46488.0,0.0396]
[1649164897657,0.0166789,46491.0,46488.0,0.0396]
[1649164898301,0.26900501,46490.0,46488.0,0.0396]
[1649164900007,0.56900501,46490.0,46476.0,0.107515]
[1649164900107,0.3,46489.0,46477.0,0.070643]
[1649164900306,0.053769,46487.0,46476.0,0.031057]
[1649164900407,0.3002375,46484.0,46476.0,0.031058]
[1649164900509,0.3002375,46484.0,46476.0,0.03106]
[1649164900608,0.30894951,46480.0,46476.0,0.03106]
[1649164900707,0.30894951,46480.0,46476.0,0.031062]
[1649164900807,0.30894951,46480.0,46475.0,0.01513]
[1649164901008,0.30894951,46480.0,46476.0,0.031062]
[1649164901214,0.19244096,46485.0,46475.0,0.01513]
[1649164901313,0.19244096,46485.0,46477.0,0.031059]
[1649164901408,0.19244096,46485.0,46478.0,0.031057]
[1649164901958,0.00087839,46490.0,46483.0,0.27027615]
[1649164902058,0.00087839,46490.0,46484.0,0.031046]
[1649164902168,0.00087839,46490.0,46486.0,0.27539598]
[1649164902259,0.00087839,46490.0,46487.0,0.031041]
[1649164902706,0.00065105,46490.0,46487.0,0.031041]
[1649164903612,0.01,46504.0,46489.0,2.2]
[1649164903711,0.01,46504.0,46490.0,2.584781]
[1649164903818,0.01,46504.0,46490.0,2.684781]
[1649164903912,0.01,46504.0,46496.0,0.00755904]
[1649164904009,0.01,46504.0,46497.0,0.38102]
[1649164904113,0.7977,46528.0,46512.0,0.3364158]
[1649164904114,0.71314096,46528.0,46512.0,0.3364158]
[1649164904235,0.0949,46533.0,46513.0,0.330984]
[1649164904309,0.117428,46534.0,46513.0,0.380984]
[1649164904413,0.01,46534.0,46514.0,0.0396]
[1649164904513,0.01,46534.0,46515.0,0.030978]
[1649164904611,0.01,46534.0,46517.0,0.107424]
[1649164904712,0.26657667,46519.0,46513.0,0.0396]
[1649164904812,0.3,46518.0,46513.0,0.0396]
[1649164905011,0.23044143,46517.0,46513.0,0.0396]
[1649164905287,0.23044143,46517.0,46504.0,0.0396]
[1649164905288,0.58949837,46516.0,46504.0,0.0396]
[1649164905386,0.3,46515.0,46498.0,0.0396]
[1649164905493,0.053739,46512.0,46498.0,0.0396]
[1649164905687,0.3,46511.0,46498.0,0.0396]
[1649164905788,0.31485039,46500.0,46498.0,0.0396]
[1649164905891,0.31485039,46500.0,46499.0,0.031002]
[1649164905988,0.31485039,46500.0,46493.0,0.5]
[1649164906141,0.56996534,46500.0,46494.0,0.031023]
[1649164906687,0.57019162,46500.0,46494.0,0.031023]
[1649164907588,0.56996534,46500.0,46494.0,0.031023]
[1649164907789,0.57051001,46500.0,46498.0,0.00323314]
[1649164908488,0.00081184,46499.0,46498.0,0.00323314]
[1649164910307,0.00081184,46499.0,46498.0,0.03425214]
[1649164911368,0.00081184,46499.0,46498.0,0.68838355]
[1649164911562,0.00081184,46499.0,46498.0,0.51234745]
[1649164912262,0.00044823,46500.0,46498.0,0.51234745]
[1649164912365,0.2475,46514.0,46499.0,0.812962]
[1649164912471,0.2475,46514.0,46500.0,0.68281]
[1649164912561,0.3785,46532.0,46500.0,0.68281]
[1649164912562,0.3,46527.0,46504.0,0.053715]
[1649164912661,0.3,46527.0,46508.0,0.107426]
[1649164912662,0.00218008,46512.0,46508.0,0.107426]
[1649164912808,0.00218008,46512.0,46509.0,0.030998]
[1649164913006,0.00218008,46512.0,46509.0,0.070598]
[1649164913407,0.00218008,46512.0,46510.0,0.25210655]
[1649164913507,0.00218008,46512.0,46511.0,0.030996]
[1649164913607,0.24821711,46517.0,46511.0,0.030996]
[1649164913709,0.24821711,46517.0,46512.0,0.053716]
[1649164913808,0.24821711,46517.0,46513.0,0.03099]
[1649164914212,0.24821711,46517.0,46514.0,0.107431]
[1649164914358,0.24821711,46517.0,46515.0,0.030987]
[1649164914709,0.24821711,46517.0,46509.0,0.0396]
[1649164914810,0.24821711,46517.0,46507.0,0.030997]
[1649164914910,0.3,46516.0,46506.0,0.030999]
[1649164915214,0.24821711,46517.0,46506.0,0.030999]
[1649164915460,0.3,46516.0,46505.0,0.031]
[1649164915562,0.26616842,46507.0,46505.0,0.031]
[1649164915663,0.26616842,46507.0,46505.0,0.081]
[1649164915765,0.26616842,46507.0,46505.0,0.031]
[1649164916618,0.0005451,46508.0,46506.0,0.05373]
[1649164916720,0.0005451,46508.0,46507.0,0.031003]
[1649164917217,0.00072609,46516.0,46507.0,0.031003]
[1649164917317,0.29441804,46508.0,46501.0,0.22908179]
[1649164917417,0.00072609,46516.0,46502.0,0.031003]
[1649164917418,0.3,46507.0,46502.0,0.031003]
[1649164917519,0.00072609,46516.0,46501.0,0.22908179]
[1649164917627,2.2,46498.0,46475.0,0.9672353]
[1649164917729,2.2,46498.0,46470.0,0.002]
[1649164917730,0.2,46488.0,46470.0,0.002]
[1649164917831,0.622021,46487.0,46463.0,0.001]
[1649164917979,0.622021,46487.0,46457.0,0.001]
[1649164917980,0.37663502,46473.0,46464.0,0.31910127]
[1649164918069,0.37663502,46473.0,46451.0,0.42002171]
[1649164918070,0.053781,46471.0,46451.0,0.42002171]
[1649164918176,0.4944,46468.0,46451.0,0.42002171]
[1649164918273,3.072021,46467.0,46441.0,0.02686]
[1649164918373,0.4954,46455.0,46441.0,0.02686]
[1649164918468,0.622021,46467.0,46441.0,0.02686]
[1649164918469,1.3,46454.0,46441.0,0.02686]
[1649164918577,0.4954,46453.0,46447.0,0.5165513]
[1649164918676,0.322021,46452.0,46447.0,0.5165513]
[1649164918767,0.3,46451.0,46447.0,0.5165513]
[1649164918870,0.322021,46450.0,46447.0,0.5165513]
[1649164918981,0.361621,46450.0,46447.0,0.5165513]
[1649164919070,0.361621,46450.0,46448.0,0.22958887]
[1649164919071,0.0396,46450.0,46448.0,0.22958887]
[1649164919178,0.093414,46450.0,46448.0,0.22958887]
[1649164919476,0.093414,46450.0,46448.0,0.47170535]
[1649164919578,0.053814,46450.0,46448.0,0.47170535]
[1649164919672,0.161442,46455.0,46448.0,0.47170535]
[1649164919777,0.05,46461.0,46448.0,0.47170535]
[1649164919872,0.05,46461.0,46451.0,0.16301015]
[1649164920122,0.05,46461.0,46448.0,0.47170535]
[1649164920273,0.05,46461.0,46455.0,0.33858284]
[1649164920375,0.05,46461.0,46455.0,0.61857916]
[1649164920475,0.049,46461.0,46455.0,0.61857916]
[1649164920577,0.049,46461.0,46457.0,0.21958396]
[1649164920970,0.00065749,46467.0,46457.0,0.21958396]
[1649164921087,0.00065749,46467.0,46458.0,0.34034696]
[1649164921275,0.00065749,46467.0,46463.0,0.16993118]
[1649164921372,0.00065749,46467.0,46466.0,0.16993118]
[1649164921724,0.00065749,46467.0,46466.0,0.678377]
[1649164922129,0.00065749,46467.0,46466.0,0.728377]
[1649164922276,0.00065749,46467.0,46466.0,0.828377]
[1649164922575,0.00065749,46467.0,46466.0,1.31808302]
[1649164922775,0.3,46483.0,46467.0,1.25]
[1649164922877,0.3,46487.0,46475.0,0.21329871]
[1649164922975,0.23863465,46486.0,46478.0,0.23080134]
[1649164923075,0.3,46492.0,46479.0,0.31368061]
[1649164923376,0.053758,46489.0,46479.0,0.31368061]
[1649164923679,0.053758,46489.0,46480.0,0.40887405]
[1649164923775,0.053758,46489.0,46480.0,0.40687405]
[1649164924124,0.2914,46496.0,46480.0,0.40687405]
[1649164924125,0.2914,46496.0,46487.0,0.30128694]
[1649164924219,0.00019307,46500.0,46487.0,0.30128694]
[1649164924322,0.00019307,46500.0,46496.0,0.30012726]
[1649164924421,0.053746,46498.0,46488.0,0.20544165]
[1649164924520,0.053746,46498.0,46487.0,0.34088694]
[1649164924819,0.053746,46498.0,46489.0,0.38816169]
[1649164925020,0.053746,46498.0,46490.0,0.0396]
[1649164925170,0.053746,46498.0,46494.0,0.28000076]
[1649164925273,0.01,46504.0,46495.0,0.16993118]
[1649164925373,0.01,46504.0,46495.0,0.0396]
[1649164925472,0.01,46504.0,46498.0,0.16993118]
[1649164925622,0.01,46504.0,46497.0,0.0301575]
[1649164925623,0.01,46504.0,46503.0,0.16993118]
[1649164925875,0.01,46504.0,46503.0,0.0396]
[1649164925986,0.01,46504.0,46503.0,0.55971981]
[1649164926075,0.01,46504.0,46503.0,0.55952894]
[1649164926274,0.01,46504.0,46503.0,1.06813309]
[1649164926476,0.01,46504.0,46503.0,0.64255662]
[1649164926926,0.01,46504.0,46503.0,0.54801328]
[1649164927026,0.01,46504.0,46503.0,0.55888798]
[1649164927479,0.01,46504.0,46503.0,0.90560739]
[1649164927810,0.005,46504.0,46503.0,0.90560739]
[1649164928415,0.005,46504.0,46503.0,0.90560517]
[1649164928716,0.005,46504.0,46503.0,0.8975657]
[1649164928812,0.005,46504.0,46503.0,0.90843468]
[1649164929110,0.005,46504.0,46503.0,0.90785593]
[1649164929460,0.005,46504.0,46503.0,0.99135762]
[1649164929560,0.005,46504.0,46503.0,0.64463821]
[1649164930613,0.00573335,46504.0,46503.0,0.65078183]
[1649164932770,0.00573335,46504.0,46503.0,0.65096856]
[1649164934777,0.00573335,46504.0,46503.0,0.40919693]
[1649164934874,0.00573335,46504.0,46503.0,0.38014285]
[1649164934972,0.00573335,46504.0,46503.0,0.1030201]
[1649164935185,0.00573335,46504.0,46503.0,0.0030201]
[1649164935380,0.00576693,46502.0,46501.0,0.00331152]
[1649164935985,0.32778793,46502.0,46501.0,0.00331152]
[1649164936081,0.32778793,46502.0,46501.0,1.52e-06]
[1649164936082,0.30576693,46502.0,46501.0,1.52e-06]
[1649164936179,0.62778793,46502.0,46501.0,1.52e-06]
[1649164936381,0.322021,46501.0,46494.0,0.00047151]
[1649164936680,0.322021,46501.0,46489.0,0.027]
[1649164936881,0.322021,46501.0,46494.0,0.00047442]
[1649164936981,0.00047436,46500.0,46494.0,0.00047442]
[1649164937181,0.10800036,46500.0,46494.0,0.00047442]
[1649164937285,0.88942999,46499.0,46494.0,0.00047442]
[1649164937383,0.93942999,46499.0,46494.0,0.00047442]
[1649164937584,0.35690612,46490.0,46489.0,0.027]
[1649164937684,0.65690612,46490.0,46489.0,0.027]
[1649164937783,0.70690612,46490.0,46489.0,0.027]
[1649164939319,0.40690612,46490.0,46489.0,0.027]
[1649164939920,0.70690612,46490.0,46489.0,0.027]
[1649164941223,0.38488512,46490.0,46489.0,0.02923443]
[1649164941423,0.08488512,46490.0,46489.0,0.02923443]
[1649164941531,0.03488512,46490.0,46489.0,0.02923443]
[1649164942427,0.03488512,46490.0,46489.0,0.32751545]
[1649164942526,0.03488512,46490.0,46489.0,0.55689366]
[1649164942881,0.03488512,46490.0,46489.0,0.43971866]
[1649164943186,0.03551082,46490.0,46489.0,0.43995059]
[1649164943281,0.03551082,46490.0,46489.0,0.45082681]
[1649164943481,0.03551082,46490.0,46489.0,0.45306124]
[1649164943880,0.03551082,46490.0,46489.0,0.75306124]
[1649164944881,0.03551082,46490.0,46489.0,0.79266124]
[1649164945834,0.03551082,46490.0,46489.0,0.7938003]
[1649164946039,0.03551082,46490.0,46489.0,0.8438003]
[1649164946596,0.03551082,46490.0,46489.0,0.7938003]
[1649164946599,0.03551082,46490.0,46489.0,0.4938003]
[1649164946683,0.03551082,46490.0,46489.0,0.22482198]
[1649164946885,0.03551082,46490.0,46489.0,0.21394587]
[1649164947737,0.03551082,46490.0,46489.0,0.00360542]
[1649164948737,0.35753182,46490.0,46489.0,0.00360542]
[1649164948835,0.40753182,46490.0,46489.0,0.00360542]
[1649164949089,0.35753182,46490.0,46489.0,0.00360542]
[1649164949336,0.03551082,46490.0,46489.0,0.00360542]
[1649164949535,0.35753182,46490.0,46489.0,0.00360542]
[1649164949637,0.03551082,46490.0,46489.0,0.00360542]
[1649164949838,0.35753182,46490.0,46489.0,0.00360542]
[1649164950702,0.40753182,46490.0,46489.0,0.00360542]
[1649164950996,0.70753182,46490.0,46489.0,0.00360542]
[1649164951591,0.40753182,46490.0,46489.0,0.00360542]
[1649164951693,0.08551082,46490.0,46489.0,0.00360542]
[1649164951797,0.03551082,46490.0,46489.0,0.00360542]
[1649164953049,0.03551082,46490.0,46489.0,0.26281092]
[1649164953345,0.03551082,46490.0,46489.0,0.00360542]
[1649164953446,0.03315209,46490.0,46489.0,0.00360542]
[1649164955823,0.03315209,46490.0,46488.0,0.28846483]
[1649164956022,0.03315209,46490.0,46488.0,0.00152228]
[1649164956626,0.322021,46489.0,46488.0,0.00152228]
[1649164957025,0.57041867,46489.0,46488.0,0.00152228]
[1649164957127,0.322021,46489.0,46488.0,0.00152228]
[1649164957527,0.322021,46489.0,46488.0,0.00330552]
[1649164957773,0.03315209,46490.0,46488.0,0.00346499]
[1649164957868,0.322021,46489.0,46488.0,0.00346499]
[1649164957969,0.03315209,46490.0,46488.0,0.00346499]
[1649164958070,0.54225515,46489.0,46488.0,0.00346499]
[1649164958170,0.22023415,46489.0,46488.0,0.00346499]
[1649164958271,0.03315209,46490.0,46488.0,0.00346499]
[1649164958370,0.322021,46489.0,46488.0,0.00346499]
[1649164958774,0.03315209,46490.0,46488.0,0.00346499]
[1649164958875,0.322021,46489.0,46488.0,0.00346499]
[1649164958971,0.03315209,46490.0,46488.0,0.00346499]
[1649164959223,0.322021,46489.0,46478.0,0.10646141]
[1649164959322,0.622021,46489.0,46478.0,0.10646141]
[1649164959422,0.053765,46487.0,46478.0,0.10646141]
[1649164959522,0.053765,46487.0,46478.0,0.15646141]
[1649164959971,0.31155064,46487.0,46480.0,0.26888378]
[1649164960072,0.053765,46487.0,46480.0,0.05]
[1649164960171,0.053765,46487.0,46478.0,0.15646141]
[1649164960423,0.053765,46487.0,46480.0,0.31004042]
[1649164960721,0.053765,46487.0,46480.0,0.36004042]
[1649164961071,0.053765,46487.0,46480.0,0.58134023]
[1649164961522,0.05426802,46487.0,46480.0,0.58134023]
[1649164961724,0.05426802,46487.0,46480.0,0.58722585]
[1649164962024,0.05426802,46487.0,46480.0,0.27718543]
[1649164962324,0.05426802,46487.0,46480.0,0.05588562]
[1649164962628,0.05426802,46487.0,46480.0,0.00588562]
[1649164963526,0.05426802,46487.0,46481.0,0.00054463]
[1649164963729,0.00050264,46486.0,46481.0,0.00054463]
[1649164964529,0.00050264,46486.0,46480.0,0.00231615]
[1649164964634,0.30050264,46486.0,46480.0,0.00231615]
[1649164964729,0.30050264,46486.0,46481.0,0.00054463]
[1649164964830,0.00050264,46486.0,46481.0,0.00054463]
[1649164964932,0.24948686,46485.0,46481.0,0.00054463]
[1649164965316,0.00050264,46486.0,46481.0,0.00054463]
[1649164965516,0.322021,46485.0,46481.0,0.00054463]
[1649164965617,0.322021,46485.0,46479.0,0.28535616]
[1649164965716,0.00050264,46486.0,46479.0,0.28535616]
[1649164965916,0.00050264,46486.0,46481.0,0.00231407]
[1649164966067,0.322021,46485.0,46481.0,0.00231407]
[1649164966165,0.00050264,46486.0,46481.0,0.00231407]
[1649164967067,0.00050264,46486.0,46481.0,0.05607707]
[1649164967369,0.00050264,46486.0,46482.0,0.33407609]
[1649164967469,0.00050264,46486.0,46481.0,0.05607707]
[1649164968069,0.00050264,46486.0,46485.0,0.16993118]
[1649164968171,0.00050264,46486.0,46485.0,0.01075142]
[1649164968272,0.00050264,46486.0,46485.0,0.06449242]
[1649164968674,0.00050264,46486.0,46485.0,0.30455853]
[1649164969120,0.00050264,46486.0,46485.0,0.30455864]
[1649164969973,0.00050264,46486.0,46485.0,0.29380711]
[1649164970172,0.00050264,46486.0,46485.0,0.46373829]
[1649164970374,0.00050264,46486.0,46485.0,0.62734796]
[1649164971122,0.00050264,46486.0,46485.0,0.67734796]
[1649164971327,0.00050264,46486.0,46485.0,0.103741]
[1649164971527,0.00050264,46486.0,46485.0,0.05]
[1649164971625,0.00063886,46486.0,46485.0,0.05]
[1649164971774,0.00063886,46486.0,46483.0,0.00364438]
[1649164971877,0.00063886,46486.0,46482.0,0.15038174]
[1649164972280,0.00063886,46486.0,46482.0,0.00038174]
[1649164972378,0.00063886,46486.0,46484.0,0.30748888]
[1649164972475,0.00063886,46486.0,46484.0,0.00279184]
[1649164973381,0.30063886,46486.0,46484.0,0.00279184]
[1649164973583,0.00063886,46486.0,46485.0,0.00022406]
[1649164973778,0.28485056,46486.0,46485.0,0.00022406]
[1649164974135,0.58485056,46486.0,46485.0,0.00022406]
[1649164975279,0.90687156,46486.0,46485.0,0.00022406]
[1649164975484,0.28485056,46486.0,46485.0,0.00022406]
[1649164975580,0.31699041,46486.0,46485.0,0.00022406]
[1649164977586,0.31750551,46486.0,46485.0,0.00022406]
[1649164977680,0.0005151,46486.0,46485.0,0.00022406]
[1649164977879,0.3225371,46486.0,46485.0,0.00022406]
[1649164977980,0.0005151,46486.0,46485.0,0.00022406]
[1649164978579,0.0005151,46486.0,46484.0,0.25083949]
[1649164979382,0.0005151,46486.0,46483.0,0.05073215]
[1649164979483,0.0005151,46486.0,46485.0,0.00021124]
[1649164979786,0.3225371,46486.0,46485.0,0.00021124]
[1649164980186,0.6225371,46486.0,46485.0,0.00021124]
[1649164980329,0.3225371,46486.0,46485.0,0.00021124]
[1649164980531,0.6225371,46486.0,46485.0,0.00021124]
[1649164980779,0.6725371,46486.0,46485.0,0.00021124]
[1649164984416,0.7121371,46486.0,46483.0,0.00198012]
[1649164984515,0.7121371,46486.0,46479.0,0.00050698]
[1649164984665,0.322022,46484.0,46479.0,0.00050698]
[1649164984766,0.21512377,46485.0,46479.0,0.00050698]
[1649164984767,0.322022,46482.0,46479.0,0.00050698]
[1649164984868,0.42958623,46482.0,46479.0,0.00050698]
[1649164984966,0.57958623,46482.0,46479.0,0.00050698]
[1649164985071,0.57958623,46482.0,46475.0,0.001]
[1649164985166,0.57958623,46482.0,46478.0,0.00050696]
[1649164985265,0.29071203,46481.0,46478.0,0.00050696]
[1649164985366,0.622022,46480.0,46478.0,0.00050696]
[1649164985466,0.622022,46479.0,46478.0,0.00050696]
[1649164985568,1.08909541,46479.0,46478.0,0.00050696]
[1649164985769,1.23909541,46479.0,46478.0,0.00050696]
[1649164985868,1.05926904,46479.0,46478.0,0.00050696]
[1649164986168,1.05926904,46479.0,46475.0,0.001]
[1649164986269,0.375812,46478.0,46475.0,0.001]
[1649164986419,0.16136777,46477.0,46476.0,0.00050697]
[1649164986517,0.53338977,46477.0,46475.0,0.001]
[1649164986618,0.622022,46476.0,46475.0,0.001]
[1649164987625,0.622022,46476.0,46465.0,0.001]
[1649164987843,0.322022,46472.0,46465.0,0.001]
[1649164987937,0.353795,46471.0,46465.0,0.001]
[1649164988042,0.322022,46470.0,46465.0,0.001]
[1649164988138,0.361622,46470.0,46465.0,0.001]
[1649164988383,0.361622,46470.0,46460.0,0.002]
[1649164988485,0.053801,46469.0,46460.0,0.002]
[1649164988583,0.58834522,46468.0,46460.0,0.28408017]
[1649164988682,0.92794522,46468.0,46460.0,0.28408017]
[1649164988785,0.97794522,46468.0,46460.0,0.28408017]
[1649164988885,0.97794522,46468.0,46460.0,0.002]
[1649164988886,0.05380038,46467.0,46460.0,0.002]
[1649164988985,0.375823,46466.0,46460.0,0.002]
[1649164989135,0.10759747,46465.0,46460.0,0.002]
[1649164989235,0.322022,46464.0,46460.0,0.002]
[1649164990387,0.53721658,46464.0,46460.0,0.002]
[1649164990488,0.57681658,46464.0,46460.0,0.002]
[1649164990788,0.63061858,46464.0,46460.0,0.002]
[1649164991089,0.57681658,46464.0,46460.0,0.002]
[1649164991192,0.523019,46464.0,46460.0,0.00254517]
[1649164991535,0.16141,46463.0,46460.0,0.00254517]
[1649164991626,0.322022,46462.0,46460.0,0.00254517]
[1649164991935,0.16141,46463.0,46460.0,0.00254517]
[1649164992079,0.1618732,46463.0,46461.0,0.23431252]
[1649164992977,0.1618732,46463.0,46462.0,0.28041783]
[1649164993077,0.1618732,46463.0,46461.0,0.23431252]
[1649164993278,0.1618732,46463.0,46461.0,0.001]
[1649164993780,0.322022,46462.0,46461.0,0.001]
[1649164993880,0.1618732,46463.0,46461.0,0.001]
[1649164993982,0.322022,46462.0,46461.0,0.001]
[1649164994183,0.1618732,46463.0,46461.0,0.001]
[1649164994285,0.1618732,46463.0,46461.0,0.23724575]
[1649164995392,0.1618732,46463.0,46462.0,0.005094]
[1649164995592,0.1568732,46463.0,46462.0,0.005094]
[1649164995794,0.1568732,46463.0,46461.0,0.23724575]
[1649164995893,0.1568732,46463.0,46461.0,0.66983388]
[1649164995993,0.1568732,46463.0,46462.0,0.20304176]
[1649164996093,0.15641,46463.0,46462.0,0.19794876]
[1649164996194,0.15641,46463.0,46462.0,0.20304276]
[1649164996298,0.15641,46463.0,46462.0,0.005094]
[1649164996494,0.15641,46463.0,46462.0,0.005093]
[1649164996594,0.15641,46463.0,46461.0,0.051]
[1649164996796,0.15641,46463.0,46461.0,0.001]
[1649164996896,0.15641,46463.0,46461.0,0.00374344]
[1649164997998,0.322022,46462.0,46461.0,0.00374344]
[1649164998197,0.15641,46463.0,46461.0,0.00374344]
[1649164998298,0.322022,46462.0,46461.0,0.00374344]
[1649164998400,0.15641,46463.0,46461.0,0.00374344]
[1649164998900,0.15641,46463.0,46462.0,0.005094]
[1649164999031,0.15641,46463.0,46461.0,0.00374344]
[1649164999130,0.15641,46463.0,46460.0,0.00100344]
[1649164999243,0.15641,46463.0,46443.0,0.29353011]
[1649164999244,2.2,46461.0,46443.0,0.00195944]
[1649164999337,0.2,46453.0,46444.0,0.0969]
[1649164999435,0.322022,46452.0,46444.0,0.0969]
[1649164999533,0.24967195,46446.0,46444.0,0.0969]
[1649164999641,1.322022,46445.0,46441.0,0.011]
[1649164999735,1.0,46444.0,46441.0,0.011]
[1649164999833,0.322022,46443.0,46437.0,0.041928]
[1649164999987,1.322022,46443.0,46437.0,0.001]
[1649165000083,0.472022,46443.0,46437.0,0.001]
[1649165000287,0.472022,46443.0,46427.0,0.094794]
[1649165000389,0.053828,46435.0,46428.0,0.3]
[1649165000531,0.053828,46435.0,46426.0,0.01]
[1649165000532,0.107651,46437.0,46433.0,0.001]
[1649165000632,0.107651,46437.0,46434.0,0.005133]
[1649165001333,0.107651,46437.0,46435.0,0.30815158]
[1649165001436,0.107651,46437.0,46436.0,0.00513]
[1649165001533,0.161476,46438.0,46436.0,0.00513]
[1649165001632,0.161476,46438.0,46435.0,0.30815158]
[1649165002083,0.161476,46438.0,46436.0,0.00513]
[1649165002189,0.161476,46438.0,46436.0,0.005129]
[1649165002433,0.161476,46438.0,46435.0,0.30815158]
[1649165002533,0.161476,46438.0,46436.0,0.20142468]
[1649165002897,0.161476,46438.0,46437.0,0.005129]
[1649165003802,0.16193871,46438.0,46437.0,0.005129]
[1649165004298,0.16193871,46438.0,46437.0,0.41903727]
[1649165004396,0.16193871,46438.0,46437.0,0.005129]
[1649165005501,0.16193871,46438.0,46437.0,0.005128]
[1649165007831,0.16193871,46438.0,46436.0,0.20371674]
[1649165007929,0.16286351,46438.0,46436.0,0.20371674]
[1649165009635,0.16286351,46438.0,46436.0,0.20142468]
[1649165009735,0.21668317,46438.0,46436.0,0.20142468]
[1649165009934,0.21668317,46438.0,46435.0,0.0004909]
[1649165010300,0.322022,46437.0,46433.0,0.001]
[1649165010452,0.48350653,46437.0,46433.0,0.001]
[1649165010548,0.16148453,46437.0,46434.0,0.00047297]
[1649165010649,0.322022,46436.0,46434.0,0.00047297]
[1649165010752,0.16148453,46437.0,46434.0,0.00047297]
[1649165010850,0.322022,46436.0,46433.0,0.001]
[1649165010951,0.54110135,46436.0,46433.0,0.001]
[1649165011103,0.21907935,46436.0,46433.0,0.001]
[1649165011200,0.375854,46435.0,46433.0,0.001]
[1649165011302,0.053832,46435.0,46433.0,0.001]
[1649165011508,0.322022,46434.0,46426.0,0.007]
[1649165011606,0.05383561,46433.0,46426.0,0.003]
[1649165011704,1.0,46432.0,46426.0,0.003]
[1649165011806,0.783548,46431.0,46426.0,0.003]
[1649165011903,1.0,46430.0,46417.0,0.1]
[1649165012010,0.973822,46427.0,46417.0,0.1]
[1649165012105,0.973822,46427.0,46411.0,0.01]
[1649165012106,0.322022,46424.0,46411.0,0.01]
[1649165012205,0.322022,46422.0,46411.0,0.01]
[1649165012310,1.053856,46421.0,46411.0,0.01]
[1649165012408,1.622022,46420.0,46411.0,0.01]
[1649165012505,0.24493552,46416.0,46411.0,0.01]
[1649165012653,0.37587812,46415.0,46409.0,0.001]